Workbook

Sheet Product Transport
A1: Table 2. Product Transport by Ton-Miles (CO2, CH4 and N2O)
A2: Vehicle Type | B2: Ton-Miles | C2: CO2 Emissions (kg) | D2: CH4 Emissions (g) | E2: N2O Emissions (g)
A3: Medium- and Heavy-Duty Truck | B3: 100 | C3: =IF($A3="","",VLOOKUP(A3,'Prod Transport Emission Factor'!A7:E9,2,FALSE)*$B3) -> 20.2337978 | D3: =IF($A3="","",VLOOKUP(A3,'Prod Transport Emission Factor'!A7:E9,3,FALSE)*$B3) -> 0.2003842318 | E3: =IF($A3="","",VLOOKUP(A3,'Prod Transport Emission Factor'!A7:E9,4,FALSE)*$B3) -> 0.1512968193
A4: Rail | B4: 100 | C4: =IF($A4="","",VLOOKUP(A4,'Prod Transport Emission Factor'!A8:E10,2,FALSE)*$B4) -> 2.3 | D4: =IF($A4="","",VLOOKUP(A4,'Prod Transport Emission Factor'!A8:E10,3,FALSE)*$B4) -> 0.18 | E4: =IF($A4="","",VLOOKUP(A4,'Prod Transport Emission Factor'!A8:E10,4,FALSE)*$B4) -> 0.06
A5: Waterborne Craft | B5: 100 | C5: =IF($A5="","",VLOOKUP(A5,'Prod Transport Emission Factor'!A9:E11,2,FALSE)*$B5) -> 5.9 | D5: =IF($A5="","",VLOOKUP(A5,'Prod Transport Emission Factor'!A9:E11,3,FALSE)*$B5) -> 0.05 | E5: =IF($A5="","",VLOOKUP(A5,'Prod Transport Emission Factor'!A9:E11,4,FALSE)*$B5) -> 0.4
A7: GHG Emissions
A9: Total Emissions by Product Transport Type
A10: Transport Type | C10: CO2 (kg) | D10: CH4 (g) | E10: N2O (g)
A11: Medium- and Heavy-Duty Truck | C11: =SUMIF($A$3:$A$5,$A11,C$3:C$5) -> 20.2337978 | D11: 0.2003842318 | E11: 0.1512968193
A12: Rail | C12: 2.3 | D12: 0.18 | E12: 0.06
A13: Waterborne Craft | C13: 5.9 | D13: 0.05 | E13: 0.4
A16: Total CO2 Equivalent Emissions (metric tons) - Product Transport | D16: =(SUM(C11:C13)+SUM(D11:D13)/1000*'Prod Transport Emission Factor'!B17+SUM(E11:E13)/1000*'Prod Transport Emission Factor'!B18)/1000 -> 0.02862672386

Sheet Prod Transport Emission Factor
A1: Tool Sheet: Emission Factors
A3: All emission factors sourced from EPA's Emission Factors Hub, March 2018.
A4: https://www.epa.gov/climateleadership/center-corporate-climate-leadership-ghg-emission-factors-hub
A5: Product Transport Emission Factors
A6: Vehicle Type | B6: CO2 Factor (kg / unit) | C6: CH4 Factor (g / unit) | D6: N2O Factor (g / unit) | E6: Units
A7: Medium- and Heavy-Duty Truck | B7: 0.202337978 | C7: 0.002003842318 | D7: 0.001512968193 | E7: ton-mile
A8: Rail | B8: 0.023 | C8: 0.0018 | D8: 0.0006 | E8: ton-mile
A9: Waterborne Craft | B9: 0.059 | C9: 0.0005 | D9: 0.004 | E9: ton-mile
A10: Source:
A11: CO2, CH4, and N2O emissions data for road vehicles are from Table 2-13 of the U.S. Greenhouse Gas Emissions and Sinks: 1990–2015 (April 15, 2017). Vehicle-miles and passenger-miles data for road vehicles are from Table VM-1 of the Federal Highway Administration Highway Statistics 2015. CO2e emissions data for non-road vehicles are based on Table A-117 of the U.S. Greenhouse Gas Emissions and Sinks: 1990–2015, which are distributed into CO2, CH4, and N2O emissions based on fuel/vehicle emission factors. Freight ton-mile data for non-road vehicles are from Table 1-50 of the Bureau of Transportation Statistics, National Transportation Statistics for 2015 (Data based on 2014).
A12: Notes:
A13: Vehicle-mile factors are appropriate to use when the entire vehicle is dedicated to transporting the reporting organization's product. Ton-mile factors are appropriate when the vehicle is shared with products from other organizations. Passenger car: includes passenger cars, minivans, SUVs, and small pickup trucks (vehicles with wheelbase less than 121 inches). Light-duty truck: includes full-size pickup trucks, full-size vans, and extended-length SUVs (vehicles with wheelbase greater than 121 inches). Medium- and Heavy-Duty Truck: updates due to a methodology change.
A14: Refrigerants and Global Warming Potentials (GWPs)
A15: Gas | B15: GWP
A16: CO2 | B16: 1
A17: CH4 | B17: 25
A18: N2O | B18: 298
A19: HFC-23 | B19: 14800
A20: HFC-32 | B20: 675
A21: HFC-41 | B21: 92
A22: HFC-125 | B22: 3500
A23: HFC-134 | B23: 1100 | IV23: =SUM(B23:IU23) -> 1100
A24: HFC-134a | B24: 1430
A25: HFC-143 | B25: 353
A26: HFC-143a | B26: 4470
A27: HFC-152 | B27: 53
A28: HFC-152a | B28: 124
A29: HFC-161 | B29: 12
A30: HFC-227ea | B30: 3220
A31: HFC-236cb | B31: 1340
A32: HFC-236ea | B32: 1370
A33: HFC-236fa | B33: 9810
A34: HFC-245ca | B34: 693
A35: HFC-245fa | B35: 1030
A36: HFC-365mfc | B36: 794
A37: HFC-43-10mee | B37: 1640
A38: SF6 | B38: 22800
A39: NF3 | B39: 17200
A40: CF4 | B40: 7390
A41: C2F6 | B41: 12200
A42: C3F8 | B42: 8830
A43: c-C4F8 | B43: 10300
A44: C4F10 | B44: 8860
A45: C5F12 | B45: 9160
A46: C6F14 | B46: 9300
A47: C10F18 | B47: >7,500
A48: Source:
A49: 100-year GWPs from IPCC Fourth Assessment Report (AR4), 2007. IPCC AR4 was published in 2007 and is among the most current and comprehensive peer-reviewed assessments of climate change. AR4 provides revised GWPs of several GHGs relative to the values provided in previous assessment reports, following advances in scientific knowledge on the radiative efficiencies and atmospheric lifetimes of these GHGs and of CO2. Because the GWPs provided in AR4 reflect an improved scientific understanding of the radiative effects of these gases in the atmosphere, the values provided are more appropriate for supporting the overall goal of organizational GHG reporting than the Second Assessment Report (SAR) GWP values previously used in the Emission Factors Hub. While EPA recognizes that Fifth Assessment Report (AR5) GWPs have been published, in an effort to ensure consistency and comparability of GHG data between EPA’s voluntary and non-voluntary GHG reporting programs (e.g. GHG Reporting Program and National Inventory), EPA recommends the use of AR4 GWPs. The United States and other developed countries to the UNFCCC have agreed to submit annual inventories in 2015 and future years to the UNFCCC using GWP values from AR4, which will replace the current use of SAR GWP values. Utilizing AR4 GWPs improves EPA’s ability to analyze corporate, national, and sub-national GHG data consistently, enhances communication of GHG information between programs, and gives outside stakeholders a consistent, predictable set of GWPs to avoid confusion and additional burden.

Sheet DropDown (hidden)
A1: Tab Navigation | B1: Help Tab Navigation | C1: Fuel Combusted | D1: Vehicle Type | E1: TYPE OF REFRIGERATION EQUIPMENT | F1: CHOICES FOR REFRIGERANT | G1: Fire Suppression Equipment | H1: Fire Suppression Gas | I1: GHGs | J1: Electricity eGRID Subregions | K1: Steam Fuel Type | L1: Travel by Vehicle Miles | M1: Travel by Passenger Miles | N1: Travel by Air | O1: Product Transport Vehicle Type | P1: Product Transport Type | Q1: Fuel | R1: Fuel Type | S1: Gas | T1: Liquid | U1: Solid
A2: Stationary Combustion | B2: Help - Data Management | C2: Natural Gas | D2: Aviation Gasoline Aircraft | E2: Domestic Refrigeration | F2: CO2 | G2: Fixed | H2: CO2 | I2: CO2 | J2: ='Prod Transport Emission Factor'!#REF! ->  | K2: Natural Gas | L2: Passenger Car | M2: Intercity Rail (i.e. Amtrak) | N2: Short Haul (< 300 miles) | O2: Medium- and Heavy-duty Truck | P2: Medium- and Heavy-Duty Truck | Q2: Natural Gas | R2: Gas | S2: SCF | T2: Gallons | U2: Short Ton
A3: Mobile Sources | B3: Help - Stationary Combustion | C3: Distillate Fuel Oil No. 2 | D3: Biodiesel Buses | E3: Stand-Alone Commercial | F3: HFC-23 | G3: Portable | H3: HFC-23 | I3: CH4 | J3: ='Prod Transport Emission Factor'!#REF! ->  | K3: Distillate Fuel Oil No. 2 | L3: Light-Duty Truck | M3: Commuter Rail | N3: Medium Haul (>= 300 miles, < 2300 miles) | O3: Light-Duty Truck | P3: Rail | Q3: Distillate Fuel Oil No. 2 | R3: Liquid | S3: Therm | T3: MMBtu | U3: MMBtu
A4: Refrigeration and AC | B4: Help - Mobile Sources | C4: Residual Fuel Oil No. 6 | D4: Biodiesel Light-Duty Vehicles | E4: Medium/Large Commercial | F4: HFC-32 | H4: HFC-125 | I4: N2O | J4: ='Prod Transport Emission Factor'!#REF! ->  | K4: Residual Fuel Oil No. 6 | L4: Motorcycle | M4: Transit Rail (i.e. Subway, Tram) | N4: Long Haul (>= 2300 miles) | O4: Passenger Car | P4: Aircraft | Q4: Residual Fuel Oil No. 6 | R4: Liquid | S4: MMBtu
A5: Fire Suppression | B5: Help - Refrigeration and AC | C5: Kerosene | D5: Biodiesel Medium- and Heavy-Duty Vehicles | E5: Transport Refrigeration | F5: HFC-125 | H5: HFC-134a | I5: SF6 | J5: ='Prod Transport Emission Factor'!#REF! ->  | K5: Kerosene | M5: Bus | P5: Waterborne Craft | Q5: Kerosene | R5: Liquid
A6: Purchased Gases | B6: Help - Fire Suppression | C6: Liquefied Petroleum Gases (LPG) | D6: Biodiesel Non-Road Vehicles | E6: Industrial Refrigeration | F6: HFC-134a | H6: HFC-227ea | I6: NF3 | J6: ='Prod Transport Emission Factor'!#REF! ->  | K6: Liquefied Petroleum Gases (LPG) | Q6: Liquefied Petroleum Gases (LPG) | R6: Liquid
A7: Waste Gases | B7: Help - Purchased Gases | C7: Anthracite Coal | D7: CNG Buses | E7: Chillers | F7: HFC-143a | H7: HFC-236fa | I7: HFC-23 | J7: ='Prod Transport Emission Factor'!#REF! ->  | K7: Anthracite Coal | Q7: Anthracite Coal | R7: Solid
A8: Electricity | B8: Help - Waste Gases | C8: Bituminous Coal | D8: CNG Heavy-Duty Vehicles | E8: Residential/Commercial A/C | F8: HFC-152a | H8: CF4 | I8: HFC-32 | J8: ='Prod Transport Emission Factor'!#REF! ->  | K8: Bituminous Coal | Q8: Bituminous Coal | R8: Solid
A9: Steam | B9: Help - Electricity | C9: Sub-bituminous Coal | D9: CNG Light-Duty Vehicles | E9: Car A/C Units | F9: HFC-236fa | H9: C4F10 | I9: HFC-125 | J9: ='Prod Transport Emission Factor'!#REF! ->  | K9: Sub-bituminous Coal | Q9: Sub-bituminous Coal | R9: Solid
A10: Business Travel | B10: Help - Steam | C10: Lignite Coal | D10: Diesel Agricultural Equip. | E10: Light-Duty Truck A/C Units | F10: CF4 | I10: HFC-134a | J10: ='Prod Transport Emission Factor'!#REF! ->  | K10: Lignite Coal | Q10: Lignite Coal | R10: Solid
A11: Commuting | B11: Help - Business Travel | C11: Wood and Wood Residuals | D11: Diesel Construction Equip. | F11: C2F6 | I11: HFC-143a | J11: ='Prod Transport Emission Factor'!#REF! ->  | K11: Mixed (Electric Power Sector) | Q11: Wood and Wood Residuals | R11: Solid
A12: Product Transport | B12: Help - Commuting | C12: Landfill Gas | D12: Diesel Light-Duty Trucks | F12: SF6 | I12: HFC-152a | J12: ='Prod Transport Emission Factor'!#REF! ->  | K12: Coal Coke | Q12: Landfill Gas | R12: Gas
A13: RECs-Green Power | B13: Help - Product Transport | D13: Diesel Locomotives | F13: R-401A | I13: HFC-236fa | J13: ='Prod Transport Emission Factor'!#REF! ->  | K13: Petroleum Coke
A14: Offsets | B14: Help - Market-Based Method | D14: Diesel Medium- and Heavy-Duty Vehicles | F14: R-401B | I14: CF4 | J14: ='Prod Transport Emission Factor'!#REF! ->  | K14: Wood and Wood Residuals
B15: Help - Offsets | D15: Diesel Passenger Cars | F15: R-401C | I15: C2F6 | J15: ='Prod Transport Emission Factor'!#REF! ->  | K15: Landfill Gas
D16: Diesel Ships and Boats | F16: R-402A | I16: C3F8 | J16: ='Prod Transport Emission Factor'!#REF! -> 
D17: Ethanol Buses | F17: R-402B | I17: C4F10 | J17: ='Prod Transport Emission Factor'!#REF! -> 
D18: Ethanol Light-Duty Vehicles | F18: R-403B | I18: c-C4F8 | J18: ='Prod Transport Emission Factor'!#REF! -> 
D19: Ethanol Medium- and Heavy-Duty Vehicles | F19: R-404A | I19: C5F12 | J19: ='Prod Transport Emission Factor'!#REF! -> 
D20: Gasoline Agricultural Equip. | F20: R-406A | I20: C6F14 | J20: ='Prod Transport Emission Factor'!#REF! -> 
D21: Gasoline Construction Equip. | F21: R-407A | I21: R-401A | J21: ='Prod Transport Emission Factor'!#REF! -> 
D22: Gasoline Heavy-Duty Vehicles | F22: R-407B | I22: R-401B | J22: ='Prod Transport Emission Factor'!#REF! -> 
D23: Gasoline Light-Duty Trucks | F23: R-407C | I23: R-401C | J23: ='Prod Transport Emission Factor'!#REF! -> 
D24: Gasoline Motorcycles | F24: R-407D | I24: R-402A | J24: ='Prod Transport Emission Factor'!#REF! -> 
D25: Gasoline Passenger Cars | F25: R-407E | I25: R-402B | J25: ='Prod Transport Emission Factor'!#REF! -> 
D26: Gasoline Ships and Boats | F26: R-408A | I26: R-403B | J26: ='Prod Transport Emission Factor'!#REF! -> 
D27: Jet Fuel Aircraft | F27: R-409A | I27: R-404A | J27: ='Prod Transport Emission Factor'!#REF! -> 
D28: LNG Medium- and Heavy-Duty Vehicles | F28: R-410A | I28: R-406A
D29: LPG Light-Duty Vehicles | F29: R-410B | I29: R-407A
D30: LPG Medium- and Heavy-Duty Vehicles | F30: R-411A | I30: R-407B
D31: LPG Non-Road Vehicles | F31: R-411B | I31: R-407C
D32: Other Diesel Non-Road Vehicles | F32: R-413A | I32: R-407D
D33: Other Gasoline Non-Road Vehicles | F33: R-414A | I33: R-407E
D34: Residual Oil Ships and Boats | F34: R-414B | I34: R-408A
F35: R-417A | I35: R-409A
F36: R-422A | I36: R-410A
F37: R-422D | I37: R-410B
F38: R-423A | I38: R-411A
F39: R-424A | I39: R-411B
F40: R-426A | I40: R-413A
F41: R-428A | I41: R-414A
F42: R-434A | I42: R-414B
F43: R-500 | I43: R-417A
F44: R-502 | I44: R-422A
F45: R-504 | I45: R-422D
F46: R-507 | I46: R-423A
F47: R-508A | I47: R-424A
F48: R-508B | I48: R-426A
I49: R-428A
I50: R-434A
I51: R-500
I52: R-502
I53: R-504
I54: R-507
I55: R-508A
I56: R-508B

Sheet Help - Product Transport
A1: Scope 3 Emissions from Product Transport - HELP SHEET
A3: DEFINITION
A4: Scope 3 emissions from product transport include product and material shipments by vehicles not owned or leased by the organization. For example, the organization could hire another company to transport product from the manufacturing location to distribution centers or final markets. (Note: if an organization owns or leases the trucks or other transport vehicles, these would be part of its scope 1 mobile source emissions). Another example of product transport is paying a courier to transport documents from one office to another.
A6: COLLECT
A7: Collect information about shipment methods (on-road vehicle, waterborne craft, freight rail).The ton-miles option is only applicable for heavy-duty trucks and the organization need only enter the total ton-miles traveled. For product transport via freight rail, waterborne, or air transport, the organization should enter the total ton-miles data.
A8: Data Collection Checklist
A9: - | B9: All product transport legs (origin and destination) and mileage
A10: - | B10: Mode of transport per leg
A11: - | B11: Weight transported per shipment for ton-mile calculation
A13: QUANTIFY
A14: Enter the data into the appropriate orange colored boxes (Tables 1-2) of the Calculator section titled “Product Transport.” Once the data are entered into the Calculator, the CO2 equivalent emissions are calculated and summarized in the green colored box.
A16: Items to Note
A17: - | B17: To calculate ton-miles, multiply the weight transported (short tons) by the distance (miles) for each shipment. In Table 2, you can enter data either for individual shipments, or for the sum of ton-miles for multiple shipments.
A18: - | B18: If you do not have shipment-by-shipment data, you may multiply total tons transported by the average miles per shipment. You may also multiply average tons transported per shipment times the total miles transported. Do not multiply total tons by total miles, as this will give an incorrect result.
A19: - | B19: Example: Every week a company ships 10 short tons of product 100 miles. That equates to 52 shipments per year of 1,000 ton-miles each. The sum of the individual shipments is 52,000 ton-miles per year. Multiplying the total tons transported (520 tons) by the average miles per shipment (100 miles) provides the correct result of 52,000 ton-miles. Multiplying the average tons transported per shipment (10 tons) times the total miles (5,200 miles) also gives the correct result. Multiplying total tons (520 tons) by total miles (5,200 miles) gives an incorrect result.
